Workbook

Sheet 南京市鼓楼区残疾人两项补贴发放统计表
A1: 鼓楼区残疾人两项补贴统计表（2026年1月）
A2: 序 号 | B2: 发 放 单 位 | C2: 困难残疾人生活补贴（万元） | Q2: 重度残疾人护理（服务）补贴（万元） | V2: 实发金额合计（万元） | W2: 拨付金额（万元）（=实发-助残服务）
C3: 低保内 | I3: 低保外 | O3: 合计 | Q3: 重残 （140元） | S3: 低保（边缘）内重残 (400元服务) | U3: 合计
C4: 重残 （低保金50%） | E4: 3、4级精、智残 （低保金40%） | G4: 非重残 （低保金25%） | I4: 重残 （低保金100%） | K4: 特殊困难残疾人 （低保金60%） | M4: 无业无收入3、4级精神、智力残 （低保金40%）
C5: 人数 | D5: 补贴 金额 | E5: 人数 | F5: 补贴 金额 | G5: 人数 | H5: 补贴 金额 | I5: 人数 | J5: 补贴 金额 | K5: 人数 | L5: 补贴 金额 | M5: 人数 | N5: 补贴 金额 | O5: 人数 | P5: 补贴 金额 | Q5: 人数 | R5: 补贴 金额 | S5: 人数 | T5: 补贴 金额 | U5: 金 额
A6: 1 | B6: 湖南路 | C6: 26 | D6: 1.449500 | E6: 8 | F6: 0.3568 | G6: 12 | H6: 0.334500 | I6: 41 | J6: 4.5715 | K6: 2 | L6: 0.1338 | M6: 24 | N6: 1.0704 | O6: =C6+E6+G6+I6+K6+M6 -> 113 | P6: =N6+L6+J6+H6+F6+D6 -> 7.916500 | Q6: 337 | R6: 4.7180 | S6: 9 | T6: =400*S6/10000 -> 0.3600 | U6: =R6+T6 -> 5.0780 | V6: =U6+P6 -> 12.994500 | W6: =V6-T6 -> 12.634500
A7: 2 | B7: 宁海路 | C7: 31 | D7: 1.728250 | E7: 20 | F7: 0.8920 | G7: 6 | H7: 0.167250 | I7: 50 | J7: 5.5750 | K7: 1 | L7: 0.0669 | M7: 35 | N7: 1.5610 | O7: 143 | P7: 9.990400 | Q7: 343 | R7: 4.8160 | S7: 10 | T7: 0.4000 | U7: 5.2160 | V7: 15.206400 | W7: 14.806400
A8: 3 | B8: 中央门 | C8: 52 | D8: 2.899000 | E8: 33 | F8: 1.4718 | G8: 30 | H8: 0.864125 | I8: 103 | J8: 11.4845 | K8: 2 | L8: 0.1338 | M8: 30 | N8: 1.3380 | O8: 250 | P8: 18.191225 | Q8: 554 | R8: 7.7840 | S8: 24 | T8: 0.9600 | U8: 8.7440 | V8: 26.935225 | W8: 25.975225
A9: 4 | B9: 挹江门 | C9: 42 | D9: =557.5*C9/10000 -> 2.341500 | E9: 18 | F9: =446*E9/10000 -> 0.8028 | G9: 18 | H9: =278.75*G9/10000 -> 0.501750 | I9: 69 | J9: 7.6935 | K9: 2 | L9: 0.1338 | M9: 32 | N9: 1.4272 | O9: 181 | P9: 12.900550 | Q9: =419+42 -> 461 | R9: =5.908+0.588 -> 6.4960 | S9: 7 | T9: 0.2800 | U9: 6.7760 | V9: 19.676550 | W9: 19.396550
A10: 5 | B10: 华侨路 | C10: 30 | D10: =(557.5*C10/10000) -> 1.672500 | E10: 8 | F10: =446*E10/10000 -> 0.3568 | G10: 11 | H10: =278.75*G10/10000 -> 0.306625 | I10: 42 | J10: =1115*I10/10000 -> 4.6830 | K10: 1 | L10: =669*K10/10000 -> 0.0669 | M10: 17 | N10: =446*M10/10000 -> 0.7582 | O10: 109 | P10: 7.844025 | Q10: 263 | R10: =140*Q10/10000 -> 3.6820 | S10: 7 | T10: 0.2800 | U10: 3.9620 | V10: 11.806025 | W10: 11.526025
A11: 6 | B11: 江东 | C11: 19 | D11: 1.059250 | E11: 14 | F11: 0.6244 | G11: 5 | H11: 0.139375 | I11: 53 | J11: 6.1325 | K11: 0 | L11: 0.0000 | M11: 17 | N11: 0.7582 | O11: 108 | P11: 8.713725 | Q11: 300 | R11: 4.2420 | S11: 4 | T11: 0.1600 | U11: 4.4020 | V11: 13.115725 | W11: 12.955725
A12: 7 | B12: 凤凰 | C12: 31 | D12: 1.728250 | E12: 28 | F12: 1.2488 | G12: 27 | H12: 0.752625 | I12: 71 | J12: 7.9165 | K12: 0 | L12: 0.0000 | M12: 26 | N12: 1.2042 | O12: 183 | P12: 12.850375 | Q12: 375 | R12: 5.2920 | S12: 3 | T12: 0.1200 | U12: 5.4120 | V12: 18.262375 | W12: 18.142375
A13: 8 | B13: 热河南路 | C13: 26 | D13: 1.449500 | E13: 17 | F13: 0.7582 | G13: 19 | H13: 0.529625 | I13: 46 | J13: 5.1290 | K13: 2 | L13: =669*K13/10000 -> 0.1338 | M13: 15 | N13: 0.6690 | O13: 125 | P13: 8.669125 | Q13: 330 | R13: 4.6480 | S13: 4 | T13: 0.1600 | U13: 4.8080 | V13: 13.477125 | W13: 13.317125
A14: 9 | B14: 下关 | C14: 58 | D14: =3.2335+0.05575 -> 3.289250 | E14: 29 | F14: 1.2934 | G14: 24 | H14: 0.669000 | I14: 59 | J14: 6.5785 | K14: 0 | L14: 0.0000 | M14: 19 | N14: =0.8474+0.0446 -> 0.8920 | O14: 189 | P14: 12.722150 | Q14: 392 | R14: =5.488+0.07 -> 5.5580 | S14: 10 | T14: 0.4000 | U14: 5.9580 | V14: 18.680150 | W14: 18.280150
A15: 10 | B15: 建宁路 | C15: 31 | D15: 1.728250 | E15: 29 | F15: 1.3380 | G15: 8 | H15: 0.223000 | I15: 54 | J15: 6.0879 | K15: 0 | L15: 0.0000 | M15: 14 | N15: 0.6244 | O15: 136 | P15: 10.001550 | Q15: 302 | R15: 4.2700 | S15: 4 | T15: 0.1600 | U15: 4.4300 | V15: 14.431550 | W15: 14.271550
A16: 11 | B16: 小市 | C16: 65 | D16: 3.623750 | E16: 44 | F16: 1.9624 | G16: 32 | H16: 0.892000 | I16: 75 | J16: 8.3625 | K16: 2 | L16: 0.1338 | M16: 27 | N16: 1.2488 | O16: 245 | P16: 16.223250 | Q16: 426 | R16: 6.0200 | S16: 16 | T16: =400*S16/10000 -> 0.6400 | U16: 6.6600 | V16: 22.883250 | W16: 22.243250
A17: 12 | B17: 宝塔桥 | C17: 99 | D17: =C17*0.05575 -> 5.519250 | E17: 66 | F17: =E17*0.0446 -> 2.9436 | G17: 45 | H17: =G17*0.027875 -> 1.254375 | I17: 74 | J17: 8.3625 | K17: 0 | L17: 0.0000 | M17: 60 | N17: 2.7206 | O17: 344 | P17: 20.800325 | Q17: 509 | R17: 7.1400 | S17: 25 | T17: 1.0000 | U17: 8.1400 | V17: 28.940325 | W17: 27.940325
A18: 13 | B18: 幕府山 | C18: 46 | D18: 2.564500 | E18: 31 | F18: 1.3826 | G18: 21 | H18: 0.585375 | I18: 59 | J18: 6.5785 | K18: 0 | L18: =591*K18/10000 -> 0.0000 | M18: 13 | N18: 0.5798 | O18: 170 | P18: 11.690775 | Q18: 319 | R18: 4.4660 | S18: 5 | T18: 0.2000 | U18: 4.6660 | V18: =P18+U18 -> 16.356775 | W18: 16.156775
A19: 合计 | C19: =SUM(C6:C18) -> 556 | D19: 31.052750 | E19: 345 | F19: 15.4316 | G19: 258 | H19: 7.219625 | I19: 796 | J19: 89.1554 | K19: 12 | L19: 0.8028 | M19: 329 | N19: 14.8518 | O19: 2296 | P19: 158.513975 | Q19: 4911 | R19: 69.1320 | S19: 128 | T19: 5.1200 | U19: 74.2520 | V19: 232.765975 | W19: 227.645975
A20: 备注 | C20: 鼓楼区1月补发：1、生活补贴：低内50%，1人557.5元；低内40%，1人446元；低内25%，1人278.75元；低外100%，4人4014元；低外40%，4人1784元。合计7080.25元。2、护理补贴：27人3780元。 | U20: =P19+U19 -> 232.765975
